[Event "CZE-tht Extraliga 2018-19"]
[Site "Czech Republic"]
[Date "2019.04.20"]
[Round "10.6"]
[White "Petrova, Kristyna"]
[Black "Rasik, Vitezslav"]
[Result "1/2-1/2"]
[ECO "B09"]
[WhiteElo "2256"]
[BlackElo "2468"]
[Annotator "ChessBase"]
[PlyCount "115"]
[EventDate "2018.11.03"]
[EventType "team-tourn"]
[EventCountry "CZE"]
[SourceTitle "playchess.com"]
[Source "ChessBase"]
[SourceQuality "1"]
[WhiteTeam "Siesta B"]
[BlackTeam "Ostrava"]
[TimeControl "40/5400+30:1800+30"]

1. e4 d6 2. d4 g6 3. Nc3 Bg7 4. f4 Nf6 5. Nf3 O-O 6. Bd3 Nc6 7. Be3 Ng4 8. Bg1 e5 9. d5 Ne7 10. h3 Nf6 11. fxe5 dxe5 12. Bh2 Nexd5 13. exd5 e4 14. O-O exd3 15. Qxd3 Bf5 16. Qc4 c6 17. dxc6 Qb6+ 18. Kh1 Qxc6 19. Qxc6 bxc6 20. Nd4 Bd7 21. Rad1 Rfe8 22. Nb3 Be6 23. Nc5 Bf5 24. g4 Bxc2 25. Rc1 Be4+ 26. N3xe4 Nxe4 27. Nxe4 Rxe4 28. Rxc6 Re2 29. Rfc1 Bxb2 30. R1c2 Rxc2 31. Rxc2 Bd4 32. Kg2 Re8 33. Bf4 Kg7 34. Kf3 Re6 35. Rc4 Bf6 36. Ra4 a6 37. Be3 h6 38. Bf4 g5 39. Be3 Kg6 40. Rc4 h5 41. Rc7 h4 42. Rb7 Bd8 43. Rb8 Rd6 44. Rb4 Rf6+ 45. Ke4 Re6+ 46. Kf3 Bc7 47. Rb7 Rc6 48. Ke4 Re6+ 49. Kf3 Bd8 50. Rb8 Rd6 51. Ke4 f6 52. Bd4 Rd7 53. Ra8 a5 54. Bc3 Re7+ 55. Kd5 Rd7+ 56. Ke4 Re7+ 57. Kd5 Rd7+ 58. Ke4 1/2-1/2

[Event "CZE-tht Extraliga 2018-19"]
[Site "Czech Republic"]
[Date "2019.04.20"]
[Round "10.7"]
[White "Zilka, Stepan"]
[Black "Pulpan, Jakub"]
[Result "1/2-1/2"]
[ECO "C67"]
[WhiteElo "2534"]
[BlackElo "2418"]
[Annotator "ChessBase"]
[PlyCount "130"]
[EventDate "2018.11.03"]
[EventType "team-tourn"]
[EventCountry "CZE"]
[SourceTitle "playchess.com"]
[Source "ChessBase"]
[SourceQuality "1"]
[WhiteTeam "Novoborsky"]
[BlackTeam "Pardubice"]
[TimeControl "40/5400+30:1800+30"]

1. e4 {[%emt 0:00:00]} e5 {[%emt 0:00:35]} 2. Nf3 {[%emt 0:00:00]} Nc6 {[%emt 0:00:26]} 3. Bb5 {[%emt 0:01:18]} Nf6 {[%emt 0:00:26]} 4. O-O {[%emt 0:03:35]} Nxe4 {[%emt 0:00:31]} 5. Re1 {[%emt 0:00:04]} Nd6 {[%emt 0:00:19]} 6. Nxe5 {[%emt 0:00:05]} Be7 {[%emt 0:00:45]} 7. Bf1 {[%emt 0:00:09]} Nxe5 {[%emt 0:00:29]} 8. Rxe5 {[%emt 0:00:05]} O-O {[%emt 0:00:27]} 9. d4 {[%emt 0:03:22]} Bf6 {[%emt 0:00:55]} 10. Re1 {[%emt 0:00:06]} Re8 {[%emt 0:00:31]} 11. Rxe8+ {[%emt 0:02:53]} Nxe8 {[%emt 0:00:22]} 12. c3 {[%emt 0:04:32]} d5 {[%emt 0:03:09]} 13. Bf4 {[%emt 0:03:35]} c6 {[%emt 0:04:47]} 14. Nd2 {[%emt 0:07:09]} g6 {[%emt 0:07:03]} 15. Qb3 {[%emt 0:05:50]} Ng7 {[%emt 0:13:41]} 16. Re1 {[%emt 0:03:59]} Qb6 {[%emt 0:06:43]} 17. a4 {[%emt 0:06:08]} Ne6 {[%emt 0:18:30]} 18. Bd6 {[%emt 0:05:21]} Bd7 {[%emt 0:05:04]} 19. Qa3 {[%emt 0:03:22]} a5 {[%emt 0:09:00]} 20. Nf3 {[%emt 0:00:32]} Re8 {[%emt 0:01:55]} 21. Ne5 {[%emt 0:03:20]} Bc8 {[%emt 0:04:06]} 22. b4 {[%emt 0:10:16]} axb4 {[%emt 0:01:17]} 23. Bxb4 {[%emt 0:02:37]} Qc7 {[%emt 0:04:00]} 24. a5 {[%emt 0:03:44]} h5 {[%emt 0:09:11]} 25. Bd6 {[%emt 0:13:51]} Be7 {[%emt 0:02:59]} 26. Bxe7 {[%emt 0:00:06]} Qxe7 {[%emt 0:01:03]} 27. Qxe7 {[%emt 0:00:33]} Rxe7 {[%emt 0:00:02]} 28. Nd3 {[%emt 0:00:51]} Kf8 {[%emt 0:01:16]} 29. Rb1 {[%emt 0:04:15]} Rc7 {[%emt 0:01:15]} 30. Nc5 {[%emt 0:01:38]} Nxc5 {[%emt 0:01:36]} 31. dxc5 {[%emt 0:00:02]} Ke8 {[%emt 0:00:26]} 32. Bd3 {[%emt 0:03:52]} Re7 {[%emt 0:01:22]} 33. h4 {[%emt 0:00:46]} Rd7 {[%emt 0:01:32]} 34. f3 {[%emt 0:04:50]} d4 {[%emt 0:00:36]} 35. Re1+ {[%emt 0:01:52]} Kf8 {[%emt 0:00:20]} 36. Rc1 {[%emt 0:01:28]} Rd5 {[%emt 0:00:19]} 37. cxd4 {[%emt 0:00:23]} Rxd4 {[%emt 0:00:02]} 38. Be2 {[%emt 0:00:42]} Ra4 {[%emt 0:01:14]} 39. a6 {[%emt 0:00:39]} bxa6 {[%emt 0:00:05]} 40. Bd3 {[%emt 0:01:04]} Bf5 {[%emt 0:01:03]} 41. Bxf5 {[%emt 0:00:49]} gxf5 {[%emt 0:02:30]} 42. Rb1 {[%emt 0:00:50]} Rc4 {[%emt 0:09:09]} 43. Rb6 {[%emt 0:00:40]} Rxc5 {[%emt 0:00:08]} 44. Rxa6 {[%emt 0:00:05]} Rc4 {[%emt 0:03:16]} 45. Kf2 {[%emt 0:01:25]} Kg7 {[%emt 0:02:49]} 46. Ke3 {[%emt 0:01:21]} Kg6 {[%emt 0:01:44]} 47. Kd3 {[%emt 0:01:43]} Rc1 {[%emt 0:00:42]} 48. Ra8 {[%emt 0:01:11]} Kg7 {[%emt 0:03:22]} 49. Rc8 {[%emt 0:02:55]} Rg1 {[%emt 0:02:53]} 50. Rxc6 {[%emt 0:00:45]} Rxg2 {[%emt 0:00:04]} 51. Ke3 {[%emt 0:00:42]} Rh2 {[%emt 0:00:12]} 52. Kf4 {[%emt 0:02:16]} Rxh4+ {[%emt 0:00:04]} 53. Kxf5 {[%emt 0:04:05]} Ra4 {[%emt 0:01:59]} 54. f4 {[%emt 0:01:29]} Ra5+ {[%emt 0:00:45]} 55. Ke4 {[%emt 0:00:04]} h4 {[%emt 0:02:09]} 56. Kf3 {[%emt 0:00:19]} h3 {[%emt 0:01:41]} 57. Kg3 {[%emt 0:00:12]} Ra3+ {[%emt 0:01:25]} 58. Kh2 {[%emt 0:00:05]} Rf3 {[%emt 0:00:11]} 59. Ra6 {[%emt 0:00:38]} f6 {[%emt 0:01:19]} 60. f5 {[%emt 0:00:41]} Rxf5 {[%emt 0:01:30]} 61. Kxh3 {[%emt 0:00:12]} Rg5 {[%emt 0:00:18]} 62. Ra2 {[%emt 0:01:27]} Kf7 {[%emt 0:00:33]} 63. Rg2 {[%emt 0:02:54]} Rxg2 {[%emt 0:02:02]} 64. Kxg2 {[%emt 0:00:04]} Ke6 {[%emt 0:00:03]} 65. Kf2 {[%emt 0:00:10]} f5 1/2-1/2

[Event "CZE-tht Extraliga 2018-19"]
[Site "Czech Republic"]
[Date "2019.04.20"]
[Round "10.7"]
[White "Talla, Vladimir"]
[Black "Slampa, Jan"]
[Result "0-1"]
[ECO "E83"]
[WhiteElo "2405"]
[BlackElo "2253"]
[Annotator "NA"]
[PlyCount "74"]
[EventDate "2018.11.03"]
[EventType "team-tourn"]
[EventCountry "CZE"]
[SourceTitle "playchess.com"]
[Source "ChessBase"]
[SourceQuality "1"]
[WhiteTeam "Ostrava"]
[BlackTeam "Siesta B"]
[TimeControl "40/5400+30:1800+30"]

1. d4 Nf6 2. c4 g6 3. Nc3 Bg7 4. e4 d6 5. f3 O-O 6. Be3 a6 7. Nge2 Nc6 8. Rb1 e5 9. d5 Ne7 10. g4 Ne8 11. Nc1 f5 12. Be2 Nf6 13. Nd3 Bd7 14. c5 Rb8 15. O-O Kh8 16. h3 Neg8 17. Qb3 Bh6 18. Bf2 Qc8 19. Qd1 Rf7 20. b4 Qf8 21. a4 fxg4 22. fxg4 Nh5 23. c6 bxc6 24. dxc6 Be6 25. gxh5 Bxh3 26. Bg3 Bxf1 27. Bxf1 Qg7 28. Rb2 Rbf8 29. Bh3 Rf3 30. Rg2 Qf7 31. Kh2 Qc4 32. Nxe5 dxe5 33. Bxe5+ Bg7 34. Bxg7+ Kxg7 35. Nd5 Qxe4 36. Qa1+ Nf6 37. Nxf6 R8xf6 0-1

[Event "CZE-tht Extraliga 2018-19"]
[Site "Czech Republic"]
[Date "2019.04.20"]
[Round "10.7"]
[White "Bures, Jaroslav"]
[Black "Suran, Jan"]
[Result "1-0"]
[ECO "A45"]
[WhiteElo "2384"]
[BlackElo "2401"]
[Annotator "NA"]
[PlyCount "79"]
[EventDate "2018.11.03"]
[EventType "team-tourn"]
[EventCountry "CZE"]
[SourceTitle "playchess.com"]
[Source "ChessBase"]
[SourceQuality "1"]
[WhiteTeam "Poruba"]
[BlackTeam "Lysa nad Labem"]
[TimeControl "40/5400+30:1800+30"]

1. d4 {[%emt 0:00:00]} Nf6 {[%emt 0:00:00]} 2. Bf4 {[%emt 0:00:00]} d5 {[%emt 0:00:50]} 3. e3 {[%emt 0:00:00]} c5 {[%emt 0:05:13]} 4. Nd2 {[%emt 0:00:00]} e6 {[%emt 0:00:22]} 5. c3 {[%emt 0:02:02]} Nc6 {[%emt 0:00:23]} 6. Ngf3 {[%emt 0:00:41]} Bd6 {[%emt 0:00:50]} 7. Bg3 {[%emt 0:01:41]} O-O {[%emt 0:03:26]} 8. Bd3 {[%emt 0:00:29]} Qe7 {[%emt 0:04:05]} 9. Ne5 {[%emt 0:00:58]} Nd7 {[%emt 0:02:11]} 10. f4 {[%emt 0:06:57]} f5 {[%emt 0:09:56]} 11. O-O {[%emt 0:02:10]} Nf6 {[%emt 0:02:19]} 12. Bh4 {[%emt 0:01:42]} Qe8 $11 {[%emt 0:04:06]} 13. Rf3 {[%emt 0:12:48]} Ne4 {[%emt 0:18:27]} 14. Rh3 {[%emt 0:00:23]} Bd7 {[%emt 0:05:31]} 15. Nxd7 {[%emt 0:17:50]} Qxd7 {[%emt 0:00:03]} 16. Bxe4 {[%emt 0:00:04]} dxe4 {[%emt 0:08:14]} 17. Nxe4 {[%emt 0:00:09]} cxd4 {[%emt 0:00:25]} 18. Nxd6 {[%emt 0:00:10]} Qxd6 {[%emt 0:00:03]} 19. exd4 {[%emt 0:11:19]} Rae8 {[%emt 0:12:40]} 20. Qh5 {[%emt 0:04:05]} Qd7 {[%emt 0:04:14]} 21. Re1 {[%emt 0:01:50]} h6 {[%emt 0:01:06]} 22. Rg3 {[%emt 0:01:23]} Kh8 {[%emt 0:01:39]} 23. Qg6 {[%emt 0:03:50]} Qf7 {[%emt 0:10:09]} 24. Qxf7 {[%emt 0:10:13]} Rxf7 {[%emt 0:00:01]} 25. d5 {[%emt 0:00:01]} Nd8 {[%emt 0:02:16]} 26. Rge3 {[%emt 0:01:19]} Rd7 {[%emt 0:02:26]} 27. c4 {[%emt 0:01:08]} b5 {[%emt 0:01:39]} 28. dxe6 {[%emt 0:01:42]} Rd4 {[%emt 0:00:29]} 29. Bxd8 {[%emt 0:01:06]} Rexd8 {[%emt 0:00:27]} 30. cxb5 {[%emt 0:00:05]} Rxf4 {[%emt 0:00:19]} 31. e7 {[%emt 0:05:15]} Re8 {[%emt 0:00:01]} 32. Ra3 {[%emt 0:00:06]} Rb4 {[%emt 0:00:10]} 33. Re5 {[%emt 0:00:02]} Rxb2 {[%emt 0:01:07]} 34. Rxa7 {[%emt 0:00:05]} f4 {[%emt 0:01:02]} 35. a4 {[%emt 0:00:30]} Kh7 {[%emt 0:00:17]} 36. a5 {[%emt 0:02:12]} Kg6 {[%emt 0:00:47]} 37. a6 {[%emt 0:00:56]} Kf6 {[%emt 0:00:05]} 38. Rc5 {[%emt 0:00:10]} Rxe7 {[%emt 0:00:21]} 39. Rxe7 {[%emt 0:00:12]} Kxe7 {[%emt 0:00:01]} 40. a7 {[%emt 0:00:07]} 1-0

[Event "CZE-tht Extraliga 2018-19"]
[Site "Czech Republic"]
[Date "2019.04.20"]
[Round "10.7"]
[White "Vymazal, Bronislav"]
[Black "Hollan, Martin"]
[Result "0-1"]
[ECO "B31"]
[WhiteElo "2367"]
[BlackElo "2387"]
[Annotator "NA"]
[PlyCount "42"]
[EventDate "2018.11.03"]
[EventType "team-tourn"]
[EventCountry "CZE"]
[SourceTitle "playchess.com"]
[Source "ChessBase"]
[SourceQuality "1"]
[WhiteTeam "Brno"]
[BlackTeam "Cesky Tesin"]
[TimeControl "40/5400+30:1800+30"]

1. e4 {[%emt 0:00:00]} c5 {[%emt 0:00:00]} 2. Nf3 {[%emt 0:00:00]} Nc6 {[%emt 0:00:00]} 3. Bb5 {[%emt 0:00:00]} g6 {[%emt 0:00:00]} 4. O-O {[%emt 0:00:00]} Bg7 {[%emt 0:00:00]} 5. c3 {[%emt 0:00:00]} Nf6 {[%emt 0:00:43]} 6. Qa4 {[%emt 0:00:00]} O-O {[%emt 0:02:57]} 7. d4 {[%emt 0:00:06]} cxd4 {[%emt 0:01:11]} 8. cxd4 {[%emt 0:00:05]} d5 {[%emt 0:02:11]} 9. e5 {[%emt 0:00:14]} Ne4 {[%emt 0:00:07]} 10. Bxc6 {[%emt 0:00:50]} bxc6 {[%emt 0:00:12]} 11. Qxc6 {[%emt 0:00:05]} Bg4 {[%emt 0:03:52]} 12. Nfd2 {[%emt 0:13:30]} Rc8 {[%emt 0:08:49]} 13. Qa6 {[%emt 0:00:27]} f6 {[%emt 0:12:14]} 14. Nxe4 {[%emt 0:28:42]} dxe4 {[%emt 0:00:09]} 15. h3 {[%emt 0:00:14]} Bf5 {[%emt 0:03:55]} 16. Bf4 {[%emt 0:12:17]} fxe5 {[%emt 0:15:16]} 17. Bxe5 {[%emt 0:02:30]} Bxe5 {[%emt 0:00:18]} 18. dxe5 {[%emt 0:00:05]} e3 {[%emt 0:01:52]} 19. Nc3 {[%emt 0:16:25]} Bd3 {[%emt 0:08:23]} 20. Qxa7 {[%emt 0:00:10]} Bxf1 {[%emt 0:00:35]} 21. Rxf1 {[%emt 0:00:05]} Rxc3 {[%emt 0:01:58]} 0-1

[Event "CZE-tht Extraliga 2018-19"]
[Site "Czech Republic"]
[Date "2019.04.20"]
[Round "10.7"]
[White "Chytilek, Roman"]
[Black "Szotkowski, Jakub"]
[Result "1/2-1/2"]
[ECO "D12"]
[WhiteElo "2331"]
[BlackElo "2380"]
[Annotator "NA"]
[PlyCount "46"]
[EventDate "2018.11.03"]
[EventType "team-tourn"]
[EventCountry "CZE"]
[SourceTitle "playchess.com"]
[Source "ChessBase"]
[SourceQuality "1"]
[WhiteTeam "Duras"]
[BlackTeam "Beskydska"]
[TimeControl "40/5400+30:1800+30"]

1. Nf3 {[%emt 0:00:00]} d5 {[%emt 0:00:00]} 2. d4 {[%emt 0:00:02]} Nf6 {[%emt 0:00:25]} 3. c4 {[%emt 0:00:14]} c6 {[%emt 0:00:55]} 4. e3 {[%emt 0:00:11]} Bf5 {[%emt 0:00:27]} 5. Nc3 {[%emt 0:00:17]} e6 {[%emt 0:00:17]} 6. Nh4 {[%emt 0:00:33]} Be4 {[%emt 0:01:52]} 7. f3 {[%emt 0:02:05]} Bg6 {[%emt 0:00:20]} 8. Qb3 {[%emt 0:01:08]} Qb6 {[%emt 0:01:49]} 9. Nxg6 {[%emt 0:02:36]} hxg6 {[%emt 0:00:28]} 10. Kf2 {[%emt 0:00:15]} Nbd7 {[%emt 0:02:41]} 11. Bd2 {[%emt 0:05:41]} Be7 {[%emt 0:02:20]} 12. g3 {[%emt 0:18:08]} O-O {[%emt 0:11:18]} 13. Kg2 {[%emt 0:01:50]} Rfe8 {[%emt 0:01:56]} 14. Qxb6 {[%emt 0:14:59]} axb6 {[%emt 0:00:40]} 15. cxd5 {[%emt 0:00:03]} exd5 {[%emt 0:01:39]} 16. Bd3 {[%emt 0:00:51]} b5 {[%emt 0:04:43]} 17. Ne2 {[%emt 0:00:40]} Nb6 {[%emt 0:06:13]} 18. b3 {[%emt 0:01:24]} Bf8 {[%emt 0:13:07]} 19. Rhc1 {[%emt 0:08:21]} Ra3 {[%emt 0:10:01]} 20. Rc2 {[%emt 0:04:33]} Rea8 {[%emt 0:06:11]} 21. Rb2 {[%emt 0:05:44]} Nfd7 {[%emt 0:04:30]} 22. Nf4 {[%emt 0:04:19]} Nf6 {[%emt 0:05:35]} 23. h4 {[%emt 0:03:19]} Bd6 {[%emt 0:02:29]} 1/2-1/2

[Event "CZE-tht Extraliga 2018-19"]
[Site "Czech Republic"]
[Date "2019.04.20"]
[Round "10.7"]
[White "Simek, Petr"]
[Black "Vlasak, Lukas"]
[Result "0-1"]
[ECO "E10"]
[WhiteElo "2296"]
[BlackElo "2415"]
[Annotator "NA"]
[PlyCount "66"]
[EventDate "2018.11.03"]
[EventType "team-tourn"]
[EventCountry "CZE"]
[SourceTitle "playchess.com"]
[Source "ChessBase"]
[SourceQuality "1"]
[WhiteTeam "Siesta"]
[BlackTeam "Turnov"]
[TimeControl "40/5400+30:1800+30"]

1. d4 {[%emt 0:00:00]} Nf6 {[%emt 0:00:00]} 2. c4 {[%emt 0:00:00]} e6 {[%emt 0:00:00]} 3. Nf3 {[%emt 0:00:00]} d5 {[%emt 0:00:17]} 4. g3 {[%emt 0:00:00]} Bb4+ {[%emt 0:00:44]} 5. Bd2 {[%emt 0:00:00]} Be7 {[%emt 0:00:55]} 6. Bg2 {[%emt 0:00:02]} O-O {[%emt 0:00:38]} 7. O-O {[%emt 0:00:05]} c6 {[%emt 0:00:22]} 8. Qb3 {[%emt 0:00:23]} Nbd7 {[%emt 0:03:18]} 9. Bf4 {[%emt 0:00:25]} b6 {[%emt 0:12:44]} 10. Nc3 {[%emt 0:00:37]} Ba6 {[%emt 0:07:24]} 11. cxd5 {[%emt 0:00:23]} Nxd5 {[%emt 0:05:28]} 12. Qa4 {[%emt 0:05:38]} Bb7 {[%emt 0:18:06]} 13. Nxd5 {[%emt 0:52:20]} exd5 {[%emt 0:01:09]} 14. Rac1 {[%emt 0:00:06]} Re8 {[%emt 0:03:07]} 15. Rfd1 {[%emt 0:03:36]} Bf6 {[%emt 0:05:28]} 16. Rc2 {[%emt 0:01:03]} a5 {[%emt 0:03:29]} 17. Qa3 {[%emt 0:04:11]} Be7 {[%emt 0:07:46]} 18. Bd6 {[%emt 0:01:39]} Bf6 {[%emt 0:00:13]} 19. h4 {[%emt 0:07:40]} b5 {[%emt 0:01:15]} 20. b3 {[%emt 0:00:26]} h6 {[%emt 0:11:51]} 21. Bh3 {[%emt 0:03:22]} Nb6 {[%emt 0:03:19]} 22. Be5 {[%emt 0:01:03]} Be7 {[%emt 0:00:58]} 23. Qc1 {[%emt 0:00:06]} Nd7 {[%emt 0:03:55]} 24. Bf4 {[%emt 0:06:59]} Bf6 {[%emt 0:00:16]} 25. Bf5 {[%emt 0:02:23]} Nf8 {[%emt 0:01:43]} 26. Be5 {[%emt 0:02:44]} a4 {[%emt 0:01:41]} 27. Kg2 {[%emt 0:00:59]} axb3 {[%emt 0:02:04]} 28. axb3 {[%emt 0:00:05]} Qe7 {[%emt 0:00:33]} 29. Rd3 {[%emt 0:05:41]} Bxe5 {[%emt 0:04:23]} 30. Nxe5 {[%emt 0:00:06]} Qb4 {[%emt 0:00:17]} 31. e3 {[%emt 0:01:20]} g6 {[%emt 0:00:15]} 32. Bg4 {[%emt 0:00:32]} Rxe5 {[%emt 0:00:12]} 33. dxe5 {[%emt 0:01:11]} Qe4+ {[%emt 0:00:42]} 0-1

[Event "CZE-tht Extraliga 2018-19"]
[Site "Czech Republic"]
[Date "2019.04.20"]
[Round "10.8"]
[White "Petr, Martin"]
[Black "Kriebel, Tadeas"]
[Result "1-0"]
[ECO "C36"]
[WhiteElo "2463"]
[BlackElo "2514"]
[Annotator "ChessBase"]
[PlyCount "85"]
[EventDate "2018.11.03"]
[EventType "team-tourn"]
[EventCountry "CZE"]
[SourceTitle "playchess.com"]
[Source "ChessBase"]
[SourceQuality "1"]
[WhiteTeam "Pardubice"]
[BlackTeam "Novoborsky"]
[TimeControl "40/5400+30:1800+30"]

1. e4 {[%emt 0:00:00]} e5 {[%emt 0:00:00]} 2. f4 {[%emt 0:00:00]} d5 {[%emt 0:00:00]} 3. exd5 {[%emt 0:00:00]} exf4 {[%emt 0:00:00]} 4. Nf3 {[%emt 0:00:00]} Nf6 {[%emt 0:00:00]} 5. c4 {[%emt 0:02:32]} c6 {[%emt 0:00:03]} 6. d4 {[%emt 0:00:04]} Bb4+ {[%emt 0:00:04]} 7. Nc3 {[%emt 0:00:06]} cxd5 {[%emt 0:00:06]} 8. Bxf4 {[%emt 0:01:13]} O-O {[%emt 0:00:23]} 9. Be2 {[%emt 0:00:06]} dxc4 {[%emt 0:00:27]} 10. O-O {[%emt 0:00:07]} Bg4 {[%emt 0:12:08]} 11. Bxc4 {[%emt 0:00:34]} Nc6 {[%emt 0:00:24]} 12. Kh1 {[%emt 0:00:06]} Rc8 {[%emt 0:01:17]} 13. Bb3 {[%emt 0:12:14]} Bxf3 {[%emt 0:20:33]} 14. Rxf3 {[%emt 0:00:10]} Qxd4 {[%emt 0:01:08]} 15. Qf1 {[%emt 0:00:12]} Na5 {[%emt 0:10:47]} 16. Rd1 {[%emt 0:11:34]} Qb6 {[%emt 0:00:17]} 17. Nd5 {[%emt 0:00:08]} Nxd5 {[%emt 0:00:38]} 18. Bxd5 {[%emt 0:00:05]} Kh8 {[%emt 0:03:52]} 19. a3 {[%emt 0:11:49]} Be7 {[%emt 0:00:06]} 20. Be3 {[%emt 0:01:28]} Qa6 {[%emt 0:03:07]} 21. Qxa6 {[%emt 0:08:08]} bxa6 {[%emt 0:01:57]} 22. Rxf7 {[%emt 0:00:04]} Rxf7 {[%emt 0:05:14]} 23. Bxf7 {[%emt 0:00:12]} Nc6 {[%emt 0:21:54]} 24. Rc1 {[%emt 0:05:46]} Rf8 {[%emt 0:00:30]} 25. Rxc6 {[%emt 0:06:23]} Rxf7 {[%emt 0:00:06]} 26. Kg1 {[%emt 0:00:03]} h6 {[%emt 0:06:16]} 27. Rxa6 {[%emt 0:05:03]} Bg5 {[%emt 0:00:07]} 28. Bc5 {[%emt 0:02:06]} Rd7 {[%emt 0:02:10]} 29. b4 {[%emt 0:00:15]} Rd1+ {[%emt 0:03:21]} 30. Kf2 {[%emt 0:00:05]} Rd2+ {[%emt 0:01:38]} 31. Kf3 {[%emt 0:00:07]} Rd3+ {[%emt 0:00:07]} 32. Ke4 {[%emt 0:03:27]} Rd2 {[%emt 0:01:16]} 33. Rxa7 {[%emt 0:00:06]} Rxg2 {[%emt 0:00:09]} 34. b5 {[%emt 0:00:04]} Re2+ {[%emt 0:01:46]} 35. Kd5 {[%emt 0:02:01]} Rxh2 {[%emt 0:01:56]} 36. b6 {[%emt 0:00:05]} Bf4 {[%emt 0:00:45]} 37. Rf7 {[%emt 0:05:12]} Bg3 {[%emt 0:02:14]} 38. Rf3 {[%emt 0:02:33]} Rh5+ {[%emt 0:00:39]} 39. Kc6 {[%emt 0:00:15]} Bh2 {[%emt 0:00:21]} 40. b7 {[%emt 0:01:28]} Rg5 {[%emt 0:00:30]} 41. Bd6 {[%emt 0:30:18]} Bxd6 {[%emt 0:30:06]} 42. Kxd6 {[%emt 0:00:04]} Rb5 {[%emt 0:00:06]} 43. Rf8+ {[%emt 0:00:05]} 1-0

[Event "CZE-tht Extraliga 2018-19"]
[Site "Czech Republic"]
[Date "2019.04.20"]
[Round "10.8"]
[White "Meduna, Eduard"]
[Black "Sosna, Jan"]
[Result "1/2-1/2"]
[ECO "D02"]
[WhiteElo "2380"]
[BlackElo "2335"]
[Annotator "NA"]
[PlyCount "60"]
[EventDate "2018.11.03"]
[EventType "team-tourn"]
[EventCountry "CZE"]
[SourceTitle "playchess.com"]
[Source "ChessBase"]
[SourceQuality "1"]
[WhiteTeam "Lysa nad Labem"]
[BlackTeam "Poruba"]
[TimeControl "40/5400+30:1800+30"]

1. d4 {[%emt 0:00:00]} d5 {[%emt 0:00:00]} 2. Nf3 {[%emt 0:00:30]} c6 {[%emt 0:00:00]} 3. c4 {[%emt 0:01:54]} e6 {[%emt 0:00:07]} 4. Bg5 {[%emt 0:01:27]} Be7 {[%emt 0:02:29]} 5. Bxe7 {[%emt 0:03:09]} Qxe7 {[%emt 0:00:10]} 6. Qc2 {[%emt 0:03:20]} Nf6 {[%emt 0:03:59]} 7. e3 {[%emt 0:01:03]} Nbd7 {[%emt 0:01:28]} 8. Nc3 {[%emt 0:01:46]} O-O {[%emt 0:04:31]} 9. a3 {[%emt 0:05:22]} Re8 {[%emt 0:32:52]} 10. Be2 {[%emt 0:02:12]} dxc4 {[%emt 0:04:16]} 11. Bxc4 {[%emt 0:00:25]} e5 {[%emt 0:00:12]} 12. O-O {[%emt 0:01:09]} h6 {[%emt 0:03:53]} 13. Rae1 {[%emt 0:14:16]} e4 {[%emt 0:02:55]} 14. Nd2 {[%emt 0:00:37]} Nb6 {[%emt 0:04:16]} 15. Ba2 {[%emt 0:00:34]} Nbd5 {[%emt 0:02:37]} 16. f3 {[%emt 0:13:42]} Nxc3 {[%emt 0:04:49]} 17. bxc3 {[%emt 0:07:06]} Bf5 {[%emt 0:08:47]} 18. fxe4 {[%emt 0:04:29]} Bxe4 {[%emt 0:02:10]} 19. Nxe4 {[%emt 0:01:21]} Qxe4 {[%emt 0:00:09]} 20. Qb2 {[%emt 0:08:15]} c5 {[%emt 0:06:36]} 21. Bb1 {[%emt 0:05:45]} Qc6 {[%emt 0:00:18]} 22. Qf2 {[%emt 0:00:35]} cxd4 {[%emt 0:03:55]} 23. cxd4 {[%emt 0:00:12]} Rad8 {[%emt 0:03:24]} 24. e4 {[%emt 0:00:37]} Qd7 {[%emt 0:01:32]} 25. e5 Ng4 26. Qc2 Qxd4+ 27. Kh1 Rxe5 28. Qh7+ Kf8 29. Qh8+ Ke7 30. Qxh6 gxh6 1/2-1/2

[Event "CZE-tht Extraliga 2018-19"]
[Site "Czech Republic"]
[Date "2019.04.20"]
[Round "10.8"]
[White "Cech, Pavel"]
[Black "Kovar, Vojtech"]
[Result "1-0"]
[ECO "A45"]
[WhiteElo "2326"]
[BlackElo "2231"]
[Annotator "NA"]
[PlyCount "41"]
[EventDate "2018.11.03"]
[EventType "team-tourn"]
[EventCountry "CZE"]
[SourceTitle "playchess.com"]
[Source "ChessBase"]
[SourceQuality "1"]
[WhiteTeam "Turnov"]
[BlackTeam "Siesta"]
[TimeControl "40/5400+30:1800+30"]

1. d4 {[%emt 0:00:27]} Nf6 {[%emt 0:00:00]} 2. Bg5 {[%emt 0:00:13]} c5 {[%emt 0:00:00]} 3. Bxf6 {[%emt 0:04:28]} gxf6 {[%emt 0:00:18]} 4. c3 {[%emt 0:00:07]} Qb6 {[%emt 0:10:33]} 5. Qc2 {[%emt 0:00:13]} d5 {[%emt 0:04:25]} 6. Nf3 {[%emt 0:05:44]} Nc6 {[%emt 0:00:34]} 7. dxc5 {[%emt 0:03:29]} Qxc5 {[%emt 0:00:07]} 8. Nbd2 {[%emt 0:00:07]} Bd7 {[%emt 0:12:34]} 9. e4 {[%emt 0:08:16]} dxe4 {[%emt 0:07:30]} 10. Nxe4 {[%emt 0:02:30]} Qb6 {[%emt 0:06:49]} 11. Bc4 {[%emt 0:12:18]} f5 {[%emt 0:10:01]} 12. Neg5 {[%emt 0:12:36]} e6 {[%emt 0:00:19]} 13. Nxf7 {[%emt 0:00:38]} Kxf7 {[%emt 0:00:01]} 14. Qxf5+ {[%emt 0:00:09]} Ke8 {[%emt 0:00:05]} 15. Bxe6 {[%emt 0:04:17]} Bxe6 {[%emt 0:00:52]} 16. Qxe6+ {[%emt 0:01:54]} Be7 {[%emt 0:00:08]} 17. O-O {[%emt 0:07:32]} Rd8 {[%emt 0:10:17]} 18. Rfe1 {[%emt 0:13:56]} Rf8 {[%emt 0:12:34]} 19. Nd4 {[%emt 0:07:52]} Qc5 {[%emt 0:07:43]} 20. Rad1 {[%emt 0:07:28]} Rf7 {[%emt 0:00:06]} 21. Nxc6 {[%emt 0:01:00]} 1-0